fUST/lending_fUST_20250207
["ID","MTS","AMOUNT","RATE_DAILY","PERIOD"]
[352060796,1738915847054,-151.0,0.000142,2]
[352060797,1738915847064,-1000.0,0.00014221,2]
[352060798,1738915847073,-503.18470137,0.00014221,2]
[352060799,1738915847085,-502.09484924,0.00014221,2]
[352060800,1738915847096,-1000.0,0.00014221,2]
[352060801,1738915847106,-1008.00561803,0.00014221,2]
[352060802,1738915847115,-1003.70389752,0.00014221,2]
[352060803,1738915847126,-569.63641191,0.00014221,2]
[352060804,1738915847136,-1000.0,0.00014221,2]
[352060805,1738915847147,-501.84304651,0.00014221,2]
[352060806,1738915847156,-1005.45560939,0.00014221,2]
[352060807,1738915847166,-1000.0,0.00014221,2]
[352060808,1738915847177,-1000.0,0.00014221,2]
[352060809,1738915847187,-543.56,0.00014245,2]
[352060810,1738915847196,-543.56,0.00014245,2]
[352060811,1738915847206,-543.56,0.00014245,2]
[352060812,1738915847216,-543.56,0.00014245,2]
[352060813,1738915847226,-543.57455886,0.00014245,2]
[352060814,1738915847236,-500.0,0.00014245,2]
[352060815,1738915847245,-500.0,0.00014245,2]
[352060816,1738915847255,-366.59269649,0.00014245,2]
[352060817,1738915847264,-500.0,0.00014246,2]
[352060818,1738915847273,-500.0,0.00014246,2]
[352060819,1738915847283,-500.0,0.00014246,2]
[352060820,1738915847293,-500.0,0.00014246,2]
[352060821,1738915847302,-500.0,0.00014246,2]
[352060822,1738915847311,-500.0,0.00014246,2]
[352060823,1738915847321,-500.0,0.00014246,2]
[352060824,1738915847331,-249.82276479,0.00014246,2]
[352060825,1738915847340,-500.0,0.00014246,2]
[352060826,1738915847349,-500.0,0.00014246,2]
[352060827,1738915847358,-500.0,0.00014246,2]
[352060828,1738915847368,-500.0,0.00014246,2]
[352060829,1738915847378,-295.28641733,0.00014246,2]
[352060830,1738915847387,-231.5601373,0.00014246,2]
[352060831,1738915847398,-308.9598349,0.00014246,2]
[352060832,1738915847407,-625.91,0.00014246,2]
[352060833,1738915847417,-500.0,0.00014246,2]
[352060834,1738915847427,-500.0,0.00014246,2]
[352060835,1738915847437,-500.0,0.00014246,2]
[352060836,1738915847447,-500.0,0.00014246,2]
[352060837,1738915847456,-406.32126715,0.00014246,2]
[352060838,1738915847466,-500.0,0.00014246,2]
[352060839,1738915847476,-500.0,0.00014246,2]
[352060840,1738915847485,-500.0,0.00014246,2]
[352060841,1738915847495,-172.9631166,0.00014246,2]
[352060842,1738915847505,-151.0,0.00014246,2]
[352060843,1738915847515,-500.0,0.00014246,2]
[352060844,1738915847524,-151.0,0.00014246,2]
[352060845,1738915847534,-4491.15,0.00014246,2]
[352060846,1738915847544,-5715.64,0.00014246,2]
[352060847,1738915847554,-572.01,0.00014246,2]
[352060848,1738915847564,-500.0,0.00014246,2]
[352060849,1738915847647,-500.0,0.00014246,2]
[352060850,1738915847658,-500.0,0.00014246,2]
[352060851,1738915847669,-151.0,0.00014246,2]
[352060852,1738915847679,-500.0,0.00014246,2]
[352060853,1738915847689,-151.0,0.00014246,2]
[352060854,1738915847699,-1275.65,0.00014246,2]
[352060855,1738915847708,-565.28,0.00014246,2]
[352060856,1738915847718,-500.0,0.00014246,2]
[352060857,1738915847728,-3473.058088,0.00014246,2]
[352060858,1738915847738,-3473.058088,0.00014246,2]
[352060859,1738915847748,-500.0,0.00014246,2]
[352060860,1738915847757,-500.0,0.00014246,2]
[352060861,1738915847767,-672.71,0.00014246,2]
[352060862,1738915847776,-881.23,0.00014246,2]
[352060863,1738915847785,-500.0,0.00014246,2]
[352060864,1738915847796,-500.0,0.00014246,2]
[352060865,1738915847807,-151.0,0.00014246,2]
[352060866,1738915847816,-1576.04,0.00014246,2]
[352060867,1738915847826,-500.0,0.00014246,2]
[352060868,1738915847836,-500.0,0.00014246,2]
[352060869,1738915847846,-500.0,0.00014246,2]
[352060870,1738915847856,-3371.7,0.00014246,2]
[352060871,1738915847867,-821.12,0.00014246,2]
[352060872,1738915847876,-500.0,0.00014246,2]
[352060873,1738915847887,-500.0,0.00014246,2]
[352060874,1738915847900,-500.0,0.00014246,2]
[352060875,1738915847910,-602.8,0.00014246,2]
[352060876,1738915847920,-500.0,0.00014246,2]
[352060877,1738915847931,-500.0,0.00014246,2]
[352060878,1738915847940,-500.0,0.00014246,2]
[352060879,1738915847950,-500.0,0.00014246,2]
[352060880,1738915847960,-500.0,0.00014246,2]
[352060881,1738915847970,-500.0,0.00014246,2]
[352060882,1738915847982,-500.0,0.00014246,2]
[352060883,1738915847992,-500.0,0.00014246,2]
[352060884,1738915848006,-500.0,0.00014246,2]
[352060885,1738915848016,-500.0,0.00014246,2]
[352060886,1738915848027,-346.92022482,0.00014246,2]
[352060887,1738915848040,-500.0,0.00014246,2]
[352060888,1738915848051,-767.32,0.00014246,2]
[352060889,1738915848060,-500.0,0.00014246,2]
[352060890,1738915848071,-500.0,0.00014246,2]
[352060891,1738915848082,-500.0,0.00014246,2]
[352060892,1738915848093,-500.0,0.00014246,2]
[352060893,1738915848104,-819.13,0.00014246,2]
[352060894,1738915848114,-1061.93,0.00014246,2]
[352060895,1738915848126,-151.25119173,0.00014252,2]
[352060896,1738915848137,-151.0,0.000143,2]
[352060897,1738915848149,-151.0,0.000143,2]
[352060898,1738915848160,-151.0,0.000143,2]
[352060899,1738915848171,-151.0,0.000143,2]
[352060900,1738915848182,-744.62464834,0.00014314,2]
[352060901,1738915848193,-659.77439599,0.00014329,2]
[352060902,1738915848204,-500.0,0.00014383,2]
[352060903,1738915848215,-500.0,0.00014383,2]
[352060904,1738915848227,-373.12125676,0.00014383,2]
[352060905,1738915848238,-500.0,0.00014383,2]
[352060906,1738915848248,-500.0,0.00014383,2]
[352060907,1738915848259,-500.0,0.00014383,2]
[352060908,1738915848270,-500.0,0.00014383,2]
[352060909,1738915848280,-480.71,0.00014383,2]
[352060910,1738915848291,-343.9,0.00014383,2]
[352060911,1738915848302,-422.45,0.00014383,2]
[352060912,1738915848312,-500.0,0.00014383,2]
[352060913,1738915848322,-151.0,0.00014383,2]
[352060914,1738915848333,-151.0,0.00014383,2]
[352060915,1738915848344,-335.663815,0.00014383,2]
[352060916,1738915848355,-245.599451,0.00014383,2]
[352060917,1738915848367,-625.91,0.00014383,2]
[352060918,1738915848378,-245.599451,0.00014383,2]
[352060919,1738915848387,-593.94976778,0.00014383,2]
[352060920,1738915848399,-500.0,0.00014383,2]
[352060921,1738915848407,-500.0,0.00014383,2]
[352060922,1738915848416,-303.012759,0.00014383,2]
[352060923,1738915848425,-303.012759,0.00014383,2]
[352060924,1738915848434,-206.84306773,0.00014383,2]
[352060925,1738915848446,-971.232207,0.00014383,2]
[352060926,1738915848459,-971.232207,0.00014383,2]
[352060927,1738915848469,-470.213975,0.00014383,2]
[352060928,1738915848480,-342.362544,0.00014383,2]
[352060929,1738915848490,-470.213975,0.00014383,2]
[352060930,1738915848501,-342.362544,0.00014383,2]
[352060931,1738915848511,-396.818272,0.00014383,2]
[352060932,1738915848522,-500.0,0.00014383,2]
[352060933,1738915848532,-396.818272,0.00014383,2]
[352060934,1738915848542,-503.66894428,0.00014383,2]
[352060935,1738915848554,-500.0,0.00014383,2]
[352060936,1738915848564,-500.0,0.00014383,2]
[352060937,1738915848575,-665.43233,0.00014383,2]
[352060938,1738915848597,-665.43233,0.00014383,2]
[352060939,1738915848607,-4491.15,0.00014383,2]
[352060940,1738915848618,-5715.64,0.00014383,2]
[352060941,1738915848628,-572.01,0.00014383,2]
[352060942,1738915848639,-192.437958,0.00014383,2]
[352060943,1738915848651,-500.0,0.00014383,2]
[352060944,1738915848661,-500.0,0.00014383,2]
[352060945,1738915848671,-192.437958,0.00014383,2]
[352060946,1738915848682,-500.0,0.00014383,2]
[352060947,1738915848692,-500.0,0.00014383,2]
[352060948,1738915848702,-1275.65,0.00014383,2]
[352060949,1738915848713,-500.0,0.00014383,2]
[352060950,1738915848724,-534.87,0.00014383,2]
[352060951,1738915848734,-500.0,0.00014383,2]
[352060952,1738915848745,-672.71,0.00014383,2]
[352060953,1738915848755,-881.23,0.00014383,2]
[352060954,1738915848765,-487.25349648,0.00014383,2]
[352060955,1738915848775,-278.18604435,0.00014383,2]
[352060956,1738915848785,-1576.04,0.00014383,2]
[352060957,1738915848796,-500.0,0.00014383,2]
[352060958,1738915848806,-500.0,0.00014383,2]
[352060959,1738915848817,-151.0,0.00014383,2]
[352060960,1738915848828,-500.0,0.00014383,2]
[352060961,1738915848839,-3371.7,0.00014383,2]
[352060962,1738915848850,-821.12,0.00014383,2]
[352060963,1738915848859,-636.71687289,0.00014383,2]
[352060964,1738915848870,-500.0,0.00014383,2]
[352060965,1738915848881,-500.0,0.00014383,2]
[352060966,1738915848892,-500.0,0.00014383,2]
[352060967,1738915848903,-500.0,0.00014383,2]
[352060968,1738915848913,-500.0,0.00014383,2]
[352060969,1738915848924,-500.0,0.00014383,2]
[352060970,1738915848934,-500.0,0.00014383,2]
[352060971,1738915848944,-151.0,0.00014383,2]
[352060972,1738915848955,-500.0,0.00014383,2]
[352060973,1738915849037,-151.0,0.00014383,2]
[352060974,1738915849053,-500.0,0.00014383,2]
[352060975,1738915849065,-500.0,0.00014383,2]
[352060976,1738915849076,-500.0,0.00014383,2]
[352060977,1738915849088,-500.0,0.00014383,2]
[352060978,1738915849099,-369.28,0.00014383,2]
[352060979,1738915849111,-151.0,0.00014383,2]
[352060980,1738915849122,-151.0,0.00014383,2]
[352060981,1738915849132,-785.59194,0.00014383,2]
[352060982,1738915849143,-767.32,0.00014383,2]
[352060983,1738915849154,-785.59194,0.00014383,2]
[352060984,1738915849164,-152.282774,0.00014383,2]
[352060985,1738915849175,-500.0,0.00014383,2]
[352060986,1738915849186,-151.0,0.00014383,2]
[352060987,1738915849197,-500.0,0.00014383,2]
[352060988,1738915849208,-438.931208,0.00014383,2]
[352060989,1738915849219,-151.0,0.00014383,2]
[352060990,1738915849229,-438.931208,0.00014383,2]
[352060991,1738915849240,-608.2,0.00014383,2]
[352060992,1738915849251,-500.0,0.00014383,2]
[352060993,1738915849262,-819.13,0.00014383,2]
[352060994,1738915849272,-1061.93,0.00014383,2]
[352060995,1738915849283,-151.0,0.00014383,2]
[352060996,1738915849294,-151.0,0.000144,2]
[352060997,1738915849306,-762.973,0.000144,2]
[352060998,1738915849317,-158.6265071,0.000144,2]
[352060999,1738915849327,-397.48018163,0.00014437,2]
[352061000,1738915849338,-700.0,0.00014438,2]
[352061001,1738915849349,-744.62464834,0.00014452,2]
[352061002,1738915849359,-247.0,0.00014474,2]
[352061003,1738915849370,-151.0,0.000145,2]
[352061004,1738915849381,-151.0,0.000145,2]
[352061005,1738915849391,-151.0,0.000145,2]
[352061006,1738915849402,-151.0,0.000145,2]
[352061007,1738915849413,-500.0,0.0001452,2]
[352061008,1738915849424,-500.0,0.0001452,2]
[352061009,1738915849434,-500.0,0.0001452,2]
[352061010,1738915849445,-500.0,0.0001452,2]
[352061011,1738915849455,-500.0,0.0001452,2]
[352061012,1738915849465,-500.0,0.0001452,2]
[352061013,1738915849475,-259.27601292,0.0001452,2]
[352061014,1738915849485,-625.91,0.0001452,2]
[352061015,1738915849495,-500.0,0.0001452,2]
[352061016,1738915849506,-500.0,0.0001452,2]
[352061017,1738915849516,-500.0,0.0001452,2]
[352061018,1738915849525,-500.0,0.0001452,2]
[352061019,1738915849535,-500.0,0.0001452,2]
[352061020,1738915849545,-4491.15,0.0001452,2]
[352061021,1738915849555,-5715.64,0.0001452,2]
[352061022,1738915849565,-572.01,0.0001452,2]
[352061023,1738915849574,-500.0,0.0001452,2]
[352061024,1738915849583,-500.0,0.0001452,2]
[352061025,1738915849593,-500.0,0.0001452,2]
[352061026,1738915849603,-500.0,0.0001452,2]
[352061027,1738915849612,-1275.65,0.0001452,2]
[352061028,1738915849622,-500.0,0.0001452,2]
[352061029,1738915849632,-151.0,0.0001452,2]
[352061030,1738915849641,-482.24764055,0.0001452,2]
[352061031,1738915849651,-672.71,0.0001452,2]
[352061032,1738915849660,-881.23,0.0001452,2]
[352061033,1738915849669,-151.0,0.0001452,2]
[352061034,1738915849679,-1576.04,0.0001452,2]
[352061035,1738915849688,-419.762259,0.0001452,2]
[352061036,1738915849697,-419.762259,0.0001452,2]
[352061037,1738915849706,-500.0,0.0001452,2]
[352061038,1738915849715,-500.0,0.0001452,2]
[352061039,1738915849724,-151.0,0.0001452,2]
[352061040,1738915849733,-500.0,0.0001452,2]
[352061041,1738915849743,-3371.7,0.0001452,2]
[352061042,1738915849751,-821.12,0.0001452,2]
[352061043,1738915849761,-500.0,0.0001452,2]
[352061044,1738915849770,-500.0,0.0001452,2]
[352061045,1738915849779,-151.0,0.0001452,2]
[352061046,1738915849789,-500.0,0.0001452,2]
[352061047,1738915849799,-151.0,0.0001452,2]
[352061048,1738915849808,-500.0,0.0001452,2]
[352061049,1738915849817,-500.0,0.0001452,2]
[352061050,1738915849827,-500.0,0.0001452,2]
[352061051,1738915849836,-500.0,0.0001452,2]
[352061052,1738915849846,-500.0,0.0001452,2]
[352061053,1738915849855,-730.905255,0.0001452,2]
[352061054,1738915849865,-500.0,0.0001452,2]
[352061055,1738915849875,-500.0,0.0001452,2]
[352061056,1738915849885,-730.905255,0.0001452,2]
[352061057,1738915849895,-500.0,0.0001452,2]
[352061058,1738915849904,-400.44562593,0.0001452,2]
[352061059,1738915849914,-767.32,0.0001452,2]
[352061060,1738915849924,-151.0,0.0001452,2]
[352061061,1738915849934,-235.82,0.0001452,2]
[352061062,1738915849943,-500.0,0.0001452,2]
[352061063,1738915849954,-500.0,0.0001452,2]
[352061064,1738915849964,-819.13,0.0001452,2]
[352061065,1738915849973,-1061.93,0.0001452,2]
[352061066,1738915849982,-476.69273039,0.00014574,2]
[352061067,1738915849992,-744.62464834,0.0001459,2]
[352061068,1738915850002,-151.0,0.000146,2]
[352061069,1738915850014,-151.0,0.000146,2]
[352061070,1738915850024,-151.0,0.000146,2]
[352061071,1738915850034,-1044.34773428,0.00014634,2]
[352061072,1738915850043,-500.0,0.00014657,2]
[352061073,1738915850054,-151.0,0.00014657,2]
[352061074,1738915850064,-500.0,0.00014657,2]
[352061075,1738915850074,-151.0,0.00014657,2]
[352061076,1738915850086,-500.0,0.00014657,2]
[352061077,1738915850095,-532.32727114,0.00014657,2]
[352061078,1738915850105,-500.0,0.00014657,2]
[352061079,1738915850115,-500.0,0.00014657,2]
[352061080,1738915850125,-153.330212,0.00014657,2]
[352061081,1738915850135,-151.0,0.00014657,2]
[352061082,1738915850146,-300.464408,0.00014657,2]
[352061083,1738915850156,-625.91,0.00014657,2]
[352061084,1738915850165,-500.0,0.00014657,2]
[352061085,1738915850175,-500.0,0.00014657,2]
[352061086,1738915850185,-155.84997868,0.00014657,2]
[352061087,1738915850194,-500.0,0.00014657,2]
[352061088,1738915850285,-385.63,0.00014657,2]
[352061089,1738915850296,-4491.15,0.00014657,2]
[352061090,1738915850306,-5715.64,0.00014657,2]
[352061091,1738915850316,-572.01,0.00014657,2]
[352061092,1738915850326,-500.0,0.00014657,2]
[352061093,1738915850335,-500.0,0.00014657,2]
[352061094,1738915850345,-500.0,0.00014657,2]
[352061095,1738915850355,-500.0,0.00014657,2]
[352061096,1738915850365,-1275.65,0.00014657,2]
[352061097,1738915850375,-615.60518247,0.00014657,2]
[352061098,1738915850385,-672.71,0.00014657,2]
[352061099,1738915850397,-881.23,0.00014657,2]
[352061100,1738915850407,-1576.04,0.00014657,2]
[352061101,1738915850416,-500.0,0.00014657,2]
[352061102,1738915850426,-500.0,0.00014657,2]
[352061103,1738915850435,-500.0,0.00014657,2]
[352061104,1738915850445,-3371.7,0.00014657,2]
[352061105,1738915850455,-821.12,0.00014657,2]
[352061106,1738915850465,-500.0,0.00014657,2]
[352061107,1738915850475,-500.0,0.00014657,2]
[352061108,1738915850485,-500.0,0.00014657,2]
[352061109,1738915850495,-500.0,0.00014657,2]
[352061110,1738915850505,-500.0,0.00014657,2]
[352061111,1738915850514,-500.0,0.00014657,2]
[352061112,1738915850524,-194.14,0.00014657,2]
[352061113,1738915850534,-216.86007725,0.00014657,2]
[352061114,1738915850544,-500.0,0.00014657,2]
[352061115,1738915850554,-500.0,0.00014657,2]
[352061116,1738915850563,-500.0,0.00014657,2]
[352061117,1738915850573,-767.32,0.00014657,2]
[352061118,1738915850582,-500.0,0.00014657,2]
[352061119,1738915850592,-500.0,0.00014657,2]
[352061120,1738915850602,-819.13,0.00014657,2]
[352061121,1738915850611,-1061.93,0.00014657,2]
[352061122,1738915850621,-310.74308653,0.00014694,2]
[352061123,1738915850631,-310.74308653,0.00014694,2]
[352061124,1738915850642,-310.74308653,0.00014694,2]
[352061125,1738915850654,-310.74308653,0.00014694,2]
[352061126,1738915850664,-310.74308653,0.00014694,2]
[352061127,1738915850673,-310.74308653,0.00014694,2]
[352061128,1738915850683,-310.74308653,0.00014694,2]
[352061129,1738915850692,-310.74308653,0.00014694,2]
[352061130,1738915850703,-310.74308653,0.00014694,2]
[352061131,1738915850713,-310.74308653,0.00014694,2]
[352061132,1738915850723,-310.74308653,0.00014694,2]
[352061133,1738915850733,-310.74308653,0.00014694,2]
[352061134,1738915850743,-310.74308653,0.00014694,2]
[352061135,1738915850752,-310.74308653,0.00014694,2]
[352061136,1738915850761,-310.74308653,0.00014694,2]
[352061137,1738915850771,-310.74308653,0.00014694,2]
[352061138,1738915850782,-310.74308653,0.00014694,2]
[352061139,1738915850791,-310.74308653,0.00014694,2]
[352061140,1738915850802,-310.74308653,0.00014694,2]
[352061141,1738915850824,-310.74,0.00014694,2]
[352061142,1738915850843,-151.0,0.000147,2]
[352061143,1738915850869,-151.0,0.000147,2]
[352061144,1738915850889,-151.0,0.000147,2]
[352061145,1738915850910,-151.0,0.000147,2]
[352061146,1738915850928,-151.0,0.00014712,2]
[352061147,1738915850949,-151.0,0.00014712,2]
[352061148,1738915850963,-151.0,0.00014712,2]
[352061149,1738915850981,-151.531591,0.00014712,2]
[352061150,1738915851002,-3473.058088,0.00014712,2]
[352061151,1738915851026,-3473.058088,0.00014712,2]
[352061152,1738915851039,-151.0,0.00014712,2]
[352061153,1738915851061,-309.1097104,0.00014712,2]
[352061154,1738915851076,-215.772047,0.00014712,2]
[352061155,1738915851094,-154.5548552,0.00014712,2]
[352061156,1738915851107,-154.5548552,0.00014712,2]
[352061157,1738915851123,-215.772047,0.00014712,2]
[352061158,1738915851139,-154.5548552,0.00014712,2]
[352061159,1738915851156,-215.772047,0.00014712,2]
[352061160,1738915851172,-215.772047,0.00014712,2]
[352061161,1738915851187,-154.5548552,0.00014712,2]
[352061162,1738915851203,-215.772047,0.00014712,2]
[352061163,1738915851219,-154.5548552,0.00014712,2]
[352061164,1738915851234,-154.5548552,0.00014712,2]
[352061165,1738915851249,-154.5548552,0.00014712,2]
[352061166,1738915851265,-154.5548552,0.00014712,2]
[352061167,1738915851281,-154.5548552,0.00014712,2]
[352061168,1738915851297,-154.5548552,0.00014712,2]
[352061169,1738915851312,-397.48018163,0.00014717,2]
[352061170,1738915851329,-744.62464834,0.00014728,2]
[352061171,1738915851344,-1000.0,0.00014728,2]
[352061172,1738915851360,-1044.34773428,0.00014734,2]
[352061173,1738915851376,-333.0,0.0001474,2]
[352061174,1738915851392,-13264.03974987,0.00014781,2]
[352061175,1738915851409,-500.0,0.00014794,2]
[352061176,1738915851425,-500.0,0.00014794,2]
[352061177,1738915851440,-500.0,0.00014794,2]
[352061178,1738915851456,-500.0,0.00014794,2]
[352061179,1738915851472,-500.0,0.00014794,2]
[352061180,1738915851488,-625.91,0.00014794,2]
[352061181,1738915851503,-500.0,0.00014794,2]
[352061182,1738915851517,-500.0,0.00014794,2]
[352061183,1738915851527,-396.818272,0.00014794,2]
[352061184,1738915851536,-396.818272,0.00014794,2]
[352061185,1738915851546,-500.0,0.00014794,2]
[352061186,1738915851556,-665.43233,0.00014794,2]
[352061187,1738915851567,-665.43233,0.00014794,2]
[352061188,1738915851577,-4491.15,0.00014794,2]
[352061189,1738915851586,-5715.64,0.00014794,2]
[352061190,1738915851596,-572.01,0.00014794,2]
[352061191,1738915851605,-192.437958,0.00014794,2]
[352061192,1738915851615,-500.0,0.00014794,2]
[352061193,1738915851625,-500.0,0.00014794,2]
[352061194,1738915851793,-192.437958,0.00014794,2]
[352061195,1738915851805,-500.0,0.00014794,2]
[352061196,1738915851815,-467.53,0.00014794,2]
[352061197,1738915851825,-1275.65,0.00014794,2]
[352061198,1738915851834,-672.71,0.00014794,2]
[352061199,1738915851844,-881.23,0.00014794,2]
[352061200,1738915851855,-1576.04,0.00014794,2]
[352061201,1738915851864,-296.71,0.00014794,2]
[352061202,1738915851873,-500.0,0.00014794,2]
[352061203,1738915851882,-460.47,0.00014794,2]
[352061204,1738915851892,-3371.7,0.00014794,2]
[352061205,1738915851902,-821.12,0.00014794,2]
[352061206,1738915851912,-500.0,0.00014794,2]
[352061207,1738915851921,-500.0,0.00014794,2]
[352061208,1738915851931,-500.0,0.00014794,2]
[352061209,1738915851941,-500.0,0.00014794,2]
[352061210,1738915851951,-500.0,0.00014794,2]
[352061211,1738915851961,-500.0,0.00014794,2]
[352061212,1738915851971,-500.0,0.00014794,2]
[352061213,1738915851981,-500.0,0.00014794,2]
[352061214,1738915851991,-500.0,0.00014794,2]
[352061215,1738915852002,-767.32,0.00014794,2]
[352061216,1738915852016,-500.0,0.00014794,2]
[352061217,1738915852026,-438.931208,0.00014794,2]
[352061218,1738915852035,-151.0,0.00014794,2]
[352061219,1738915852044,-438.931208,0.00014794,2]
[352061220,1738915852054,-500.0,0.00014794,2]
[352061221,1738915852064,-819.13,0.00014794,2]
[352061222,1738915852074,-1061.93,0.00014794,2]
[352061223,1738915852085,-151.0,0.000148,2]
[352061224,1738915852095,-1004.2549139,0.00014817,2]
[352061225,1738915852104,-303.012759,0.00014817,2]
[352061226,1738915852113,-303.012759,0.00014817,2]
[352061227,1738915852122,-971.232207,0.00014817,2]
[352061228,1738915852132,-971.232207,0.00014817,2]
[352061229,1738915852142,-470.213975,0.00014817,2]
[352061230,1738915852153,-342.362544,0.00014817,2]
[352061231,1738915852163,-470.213975,0.00014817,2]
[352061232,1738915852173,-342.362544,0.00014817,2]
[352061233,1738915852183,-1044.34773428,0.00014834,2]
[352061234,1738915852193,-1000.0,0.00014838,2]
[352061235,1738915852203,-1604.2219229,0.00014849,2]
[352061236,1738915852212,-1003.71064995,0.00014864,2]
[352061237,1738915852223,-744.62464834,0.00014866,2]
[352061238,1738915852232,-151.0,0.000149,2]
[352061239,1738915852243,-42205.89032899,0.000149,2]
[352061240,1738915852252,-151.0,0.000149,2]
[352061241,1738915852261,-1330.447896,0.000149,2]
[352061242,1738915852270,-152.29089,0.000149,2]
[352061243,1738915852279,-151.0,0.000149,2]
[352061244,1738915852289,-151.739616,0.000149,2]
[352061245,1738915852300,-151.0,0.000149,2]
[352061246,1738915852309,-151.0,0.000149,2]
[352061247,1738915852319,-151.0,0.000149,2]
[352061248,1738915852329,-151.0,0.000149,2]
[352061249,1738915852338,-151.0,0.000149,2]
[352061250,1738915852348,-335.663815,0.000149,2]
[352061251,1738915852358,-245.599451,0.000149,2]
[352061252,1738915852369,-245.599451,0.000149,2]
[352061253,1738915852379,-151.0,0.000149,2]
[352061254,1738915852389,-151.0,0.000149,2]
[352061255,1738915852401,-151.0,0.000149,2]
[352061256,1738915852411,-419.762259,0.000149,2]
[352061257,1738915852421,-419.762259,0.000149,2]
[352061258,1738915852431,-151.0,0.000149,2]
[352061259,1738915852441,-151.0,0.000149,2]
[352061260,1738915852451,-151.0,0.000149,2]
[352061261,1738915852461,-151.0,0.000149,2]
[352061262,1738915852471,-151.0,0.000149,2]
[352061263,1738915852481,-151.0,0.000149,2]
[352061264,1738915852490,-730.905255,0.000149,2]
[352061265,1738915852500,-730.905255,0.000149,2]
[352061266,1738915852510,-151.0,0.000149,2]
[352061267,1738915852519,-151.0,0.000149,2]
[352061268,1738915852529,-785.59194,0.000149,2]
[352061269,1738915852539,-785.59194,0.000149,2]
[352061270,1738915852549,-151.0,0.000149,2]
[352061271,1738915852558,-263.664972,0.000149,2]
[352061272,1738915852568,-314.0,0.00014904,2]
[352061273,1738915852577,-500.0,0.00014931,2]
[352061274,1738915852587,-212.28,0.00014931,2]
[352061275,1738915852597,-500.0,0.00014931,2]
[352061276,1738915852606,-405.98691191,0.00014931,2]
[352061277,1738915852616,-500.0,0.00014931,2]
[352061278,1738915852625,-625.91,0.00014931,2]
[352061279,1738915852635,-616.77,0.00014931,2]
[352061280,1738915852644,-500.0,0.00014931,2]
[352061281,1738915852657,-500.0,0.00014931,2]
[352061282,1738915852666,-4491.15,0.00014931,2]
[352061283,1738915852676,-5715.64,0.00014931,2]
[352061284,1738915852685,-572.01,0.00014931,2]
[352061285,1738915852695,-500.0,0.00014931,2]
[352061286,1738915852705,-500.0,0.00014931,2]
[352061287,1738915852714,-500.0,0.00014931,2]
[352061288,1738915852724,-1275.65,0.00014931,2]
[352061289,1738915852733,-672.71,0.00014931,2]
[352061290,1738915852743,-881.23,0.00014931,2]
[352061291,1738915852753,-1576.04,0.00014931,2]
[352061292,1738915852762,-500.0,0.00014931,2]
[352061293,1738915852771,-3371.7,0.00014931,2]
[352061294,1738915852781,-821.12,0.00014931,2]
[352061295,1738915852791,-333.05,0.00014931,2]